fUST/lending_fUST_20250704
["ID","MTS","AMOUNT","RATE_DAILY","PERIOD"]
[369496942,1751598641455,-460.0,0.00016438,2]
[369496944,1751598641464,-460.0,0.00016438,2]
[369496946,1751598641473,-460.0,0.00016438,2]
[369496948,1751598641484,-578.43,0.00016438,2]
[369496950,1751598641493,-2774.66,0.00016438,2]
[369496952,1751598641503,-2198.47,0.00016438,2]
[369496954,1751598641514,-784.9,0.00016438,2]
[369496956,1751598641523,-460.0,0.00016438,2]
[369496958,1751598641533,-460.0,0.00016438,2]
[369496960,1751598641542,-1628.87,0.00016438,2]
[369496962,1751598641552,-477.29,0.00016438,2]
[369496964,1751598641561,-460.0,0.00016438,2]
[369496966,1751598641571,-548.6,0.00016438,2]
[369496968,1751598641582,-460.0,0.00016438,2]
[369496970,1751598641591,-516.84,0.00016438,2]
[369496971,1751598641601,-460.0,0.00016438,2]
[369496973,1751598641611,-556.12,0.00016438,2]
[369496975,1751598641622,-897.96,0.00016438,2]
[369496977,1751598641631,-2256.14,0.00016438,2]
[369496979,1751598641641,-2375.97,0.00016438,2]
[369496981,1751598641650,-460.0,0.00016438,2]
[369496983,1751598641659,-940.86,0.00016438,2]
[369496985,1751598641669,-460.0,0.00016438,2]
[369496987,1751598641679,-480.11,0.00016438,2]
[369496989,1751598641689,-471.62,0.00016438,2]
[369496991,1751598641698,-2939.15,0.00016438,2]
[369496993,1751598641708,-1432.83,0.00016438,2]
[369496995,1751598641718,-460.0,0.00016438,2]
[369496997,1751598641728,-1055.38,0.00016438,2]
[369496999,1751598641737,-498.84,0.00016438,2]
[369497001,1751598641748,-478.77,0.00016438,2]
[369497003,1751598641758,-533.93,0.00016438,2]
[369497005,1751598641768,-460.0,0.00016438,2]
[369497007,1751598641778,-460.0,0.00016438,2]
[369497009,1751598641787,-460.0,0.00016438,2]
[369497011,1751598641797,-610.11,0.00016438,2]
[369497013,1751598641807,-1402.43,0.00016438,2]
[369497015,1751598641817,-867.23,0.00016438,2]
[369497017,1751598641827,-753.39,0.00016438,2]
[369497019,1751598641838,-1852.02,0.00016438,2]
[369497021,1751598641848,-460.0,0.00016438,2]
[369497023,1751598641858,-3351.06,0.00016438,2]
[369497025,1751598641868,-460.0,0.00016438,2]
[369497027,1751598641878,-544.81,0.00016438,2]
[369497029,1751598641887,-460.0,0.00016438,2]
[369497031,1751598641897,-460.0,0.00016438,2]
[369497033,1751598641907,-460.0,0.00016438,2]
[369497035,1751598641917,-3175.4,0.00016438,2]
[369497036,1751598641927,-460.0,0.00016438,2]
[369497038,1751598641936,-1088.51,0.00016438,2]
[369497040,1751598641946,-467.14359298,0.00016438,2]
[369497043,1751598641956,-460.0,0.00016438,2]
[369497045,1751598641966,-870.36,0.00016438,2]
[369497047,1751598641976,-678.57,0.00016438,2]
[369497049,1751598641987,-460.0,0.00016438,2]
[369497050,1751598641997,-907.990097,0.00016522,2]
[369497051,1751598642007,-406.0,0.00016618,2]
[369497052,1751598642017,-426.698,0.00016618,2]
[369497053,1751598642026,-230.40116161,0.00016681,2]
[369497054,1751598642036,-215.11129906,0.00016681,2]
[369497055,1751598642045,-837.48520791,0.00016681,2]
[369497056,1751598642055,-6199.36553828,0.00016681,2]
[369497234,1751598643818,-1541.57,0.00016438,2]
[369497236,1751598643829,-1001.3,0.00016438,2]
[369497238,1751598643838,-873.31342662,0.00016681,2]
[369497791,1751599226996,159.25884,0.00013699,2]
[369497792,1751599260152,-178.39311591,0.0001627,2]
[369497793,1751599260177,-300.0,0.00016434,2]
[369497794,1751599260203,-1200.0,0.00016434,2]
[369497795,1751599260228,-300.0,0.00016434,2]
[369497796,1751599260252,-266.0,0.00016434,2]
[369497797,1751599260276,-500.0,0.00016435,2]
[369497798,1751599260302,-413.7984741,0.00016435,2]
[369497799,1751599260328,-500.0,0.00016435,2]
[369497800,1751599260355,-500.0,0.00016435,2]
[369497801,1751599260380,-500.0,0.00016435,2]
[369497802,1751599260405,-500.0,0.00016435,2]
[369497803,1751599260429,-562.26923097,0.00016435,2]
[369497804,1751599260452,-310.49002965,0.00016435,2]
[369497805,1751599260476,-500.0,0.00016435,2]
[369497806,1751599260498,-434.20493507,0.00016435,2]
[369497807,1751599260523,-263.29149742,0.00016435,2]
[369497808,1751599260545,-500.0,0.00016435,2]
[369497809,1751599260568,-500.0,0.00016435,2]
[369497810,1751599260591,-419.43770902,0.00016435,2]
[369497811,1751599260614,-500.0,0.00016435,2]
[369497812,1751599260638,-603.34713299,0.00016435,2]
[369497813,1751599260663,-500.0,0.00016435,2]
[369497814,1751599260689,-603.86597151,0.00016435,2]
[369497815,1751599260713,-500.0,0.00016435,2]
[369497816,1751599260736,-500.0,0.00016435,2]
[369497817,1751599260761,-500.0,0.00016435,2]
[369497818,1751599260786,-500.0,0.00016435,2]
[369497819,1751599260810,-500.0,0.00016435,2]
[369497820,1751599260835,-500.0,0.00016435,2]
[369497821,1751599260860,-500.0,0.00016435,2]
[369497822,1751599260883,-500.0,0.00016435,2]
[369497823,1751599260907,-34091.39445223,0.00016436,2]
[369497824,1751599260931,-460.0,0.00016438,2]
[369497825,1751599260956,-461.65440911,0.00016438,2]
[369497826,1751599260980,-460.0,0.00016438,2]
[369497827,1751599261006,-460.0,0.00016438,2]
[369497828,1751599261029,-521.67,0.00016438,2]
[369497829,1751599261052,-460.0,0.00016438,2]
[369497830,1751599261076,-775.73,0.00016438,2]
[369497831,1751599261101,-484.50489665,0.00016438,2]
[369497832,1751599261124,-468.21526199,0.00016438,2]
[369497833,1751599261149,-527.24570607,0.00016438,2]
[369497834,1751599261172,-460.0,0.00016438,2]
[369497835,1751599261195,-498.7,0.00016438,2]
[369497836,1751599261218,-538.10991197,0.00016438,2]
[369497837,1751599261240,-164.82391629,0.00016438,2]
[369497838,1751599261263,-460.0,0.00016438,2]
[369497839,1751599261285,-460.0,0.00016438,2]
[369497840,1751599261308,-460.0,0.00016438,2]
[369497841,1751599261330,-467.8992684,0.00016438,2]
[369497842,1751599261353,-460.0,0.00016438,2]
[369497843,1751599261376,-462.60775297,0.00016438,2]
[369497844,1751599261398,-454.25838613,0.00016438,2]
[369497845,1751599261420,-462.75300225,0.00016438,2]
[369497846,1751599261442,-468.61553662,0.00016438,2]
[369497847,1751599261464,-464.6021401,0.00016438,2]
[369497848,1751599261487,-460.0,0.00016438,2]
[369497849,1751599261510,-460.0,0.00016438,2]
[369497850,1751599261533,-460.0,0.00016438,2]
[369497851,1751599261555,-460.0,0.00016438,2]
[369497852,1751599261579,-460.0,0.00016438,2]
[369497853,1751599261601,-472.5068107,0.00016438,2]
[369497854,1751599261625,-1411.46,0.00016438,2]
[369497855,1751599261649,-460.0,0.00016438,2]
[369497856,1751599261683,-180.39627573,0.00016438,2]
[369497857,1751599261712,-460.0,0.00016438,2]
[369497858,1751599261737,-479.20521666,0.00016438,2]
[369497859,1751599261766,-468.88545086,0.00016438,2]
[369497860,1751599261791,-490.3,0.00016438,2]
[369497861,1751599261814,-760.34,0.00016438,2]
[369497862,1751599261839,-460.0,0.00016438,2]
[369497863,1751599261866,-3156.88,0.00016438,2]
[369497864,1751599261896,-546.07,0.00016438,2]
[369497865,1751599261920,-550.02,0.00016438,2]
[369497866,1751599261943,-1049.74,0.00016438,2]
[369497867,1751599261966,-468.08242228,0.00016438,2]
[369497868,1751599261990,-460.0,0.00016438,2]
[369497869,1751599262016,-1863.67,0.00016438,2]
[369497870,1751599262040,-465.45866345,0.00016438,2]
[369497871,1751599262066,-460.0,0.00016438,2]
[369497872,1751599262089,-869.42,0.00016438,2]
[369497873,1751599262112,-688.63,0.00016438,2]
[369497874,1751599262137,-471.68801873,0.00016438,2]
[369497875,1751599262162,-1258.58,0.00016438,2]
[369497876,1751599262187,-477.57488734,0.00016438,2]
[369497877,1751599262213,-994.55,0.00016438,2]
[369497878,1751599262239,-471.67582145,0.00016438,2]
[369497879,1751599262265,-460.0,0.00016438,2]
[369497880,1751599262292,-467.3725344,0.00016438,2]
[369497881,1751599262318,-560.44,0.00016438,2]
[369497882,1751599262343,-463.89202649,0.00016438,2]
[369497883,1751599262368,-465.23803958,0.00016438,2]
[369497884,1751599262392,-478.06888079,0.00016438,2]
[369497885,1751599262417,-584.08,0.00016438,2]
[369497886,1751599262442,-460.0,0.00016438,2]
[369497887,1751599262464,-473.82978772,0.00016438,2]
[369497888,1751599262487,-289.44235927,0.00016438,2]
[369497889,1751599262511,-460.0,0.00016438,2]
[369497890,1751599262538,-1037.22,0.00016438,2]
[369497891,1751599262564,-562.51,0.00016438,2]
[369497892,1751599262592,-460.0,0.00016438,2]
[369497893,1751599262617,-468.88935289,0.00016438,2]
[369497894,1751599262642,-516.22491608,0.00016438,2]
[369497895,1751599262668,-997.91,0.00016438,2]
[369497896,1751599262692,-473.59916475,0.00016438,2]
[369497897,1751599262715,-872.43,0.00016438,2]
[369497898,1751599262739,-460.0,0.00016438,2]
[369497899,1751599262764,-460.0,0.00016438,2]
[369497900,1751599262789,-2744.42,0.00016438,2]
[369497901,1751599262815,-2199.06,0.00016438,2]
[369497902,1751599262839,-460.0,0.00016438,2]
[369497903,1751599262862,-460.0,0.00016438,2]
[369497904,1751599262885,-162.35663341,0.00016438,2]
[369497952,1751599831853,-367.89812471,0.00015495,2]
[369497964,1751599831962,-9632.10187529,0.00015495,2]
[369497968,1751599831973,-300.0,0.00015589,2]
[369497972,1751599831983,-15589.2202474,0.0001559,2]
[369497975,1751599831992,-418.14349971,0.00016437,2]
[369497978,1751599832002,-178.20733017,0.00016437,2]
[369497981,1751599832011,-400.37190367,0.00016437,2]
[369497984,1751599832021,-460.0,0.00016438,2]
[369497987,1751599832030,-463.76875905,0.00016438,2]
[369497990,1751599832040,-465.37340146,0.00016438,2]
[369497992,1751599832050,-460.0,0.00016438,2]
[369497994,1751599832059,-471.59306159,0.00016438,2]
[369497996,1751599832069,-461.3502101,0.00016438,2]
[369497998,1751599832079,-460.0,0.00016438,2]
[369498000,1751599832089,-469.85203153,0.00016438,2]
[369498002,1751599832099,-483.26198566,0.00016438,2]
[369498004,1751599832109,-460.0,0.00016438,2]
[369498006,1751599832119,-460.0,0.00016438,2]
[369498008,1751599832129,-460.0,0.00016438,2]
[369498010,1751599832139,-460.0,0.00016438,2]
[369498012,1751599832148,-485.31613858,0.00016438,2]
[369498014,1751599832158,-261.95849653,0.00016438,2]
[369498016,1751599832168,-473.91990853,0.00016438,2]
[369498018,1751599832178,-460.0,0.00016438,2]
[369498020,1751599832188,-460.0,0.00016438,2]
[369498023,1751599832197,-460.0,0.00016438,2]
[369498025,1751599832207,-467.70514249,0.00016438,2]
[369498027,1751599832216,-373.7,0.00016438,2]
[369498029,1751599832226,-263.37750033,0.00016438,2]
[369498031,1751599832237,-322.47704252,0.00016438,2]
[369498033,1751599832247,-460.0,0.00016438,2]
[369498035,1751599832257,-519.1,0.00016438,2]
[369498037,1751599832267,-462.97874241,0.00016438,2]
[369498039,1751599832277,-460.0,0.00016438,2]
[369498041,1751599832287,-465.50825356,0.00016438,2]
[369498044,1751599832306,-469.39275317,0.00016438,2]
[369498046,1751599832320,-460.0,0.00016438,2]
[369498048,1751599832331,-227.92878404,0.00016438,2]
[369498050,1751599832342,-376.55311076,0.00016438,2]
[369498053,1751599832352,-467.86920067,0.00016438,2]
[369498055,1751599832363,-467.78085338,0.00016438,2]
[369498057,1751599832373,-743.41,0.00016438,2]
[369498059,1751599832384,-468.433529,0.00016438,2]
[369498061,1751599832395,-473.20854133,0.00016438,2]
[369498063,1751599832405,-346.10635149,0.00016438,2]
[369498065,1751599832415,-512.90371243,0.00016438,2]
[369498067,1751599832425,-467.77409421,0.00016438,2]
[369498069,1751599832436,-465.75732466,0.00016438,2]
[369498071,1751599832446,-460.0,0.00016438,2]
[369498073,1751599832456,-474.47615982,0.00016438,2]
[369498075,1751599832466,-216.79140606,0.00016438,2]
[369498078,1751599832475,-472.17968416,0.00016438,2]
[369498080,1751599832486,-472.71091827,0.00016438,2]
[369498082,1751599832497,-508.31508876,0.00016438,2]
[369498084,1751599832508,-460.0,0.00016438,2]
[369498086,1751599832518,-460.0,0.00016438,2]
[369498088,1751599832528,-460.0,0.00016438,2]
[369498090,1751599832538,-994.0,0.00016438,2]
[369498092,1751599832548,-1206.14,0.00016438,2]
[369498094,1751599832558,-467.04121657,0.00016438,2]
[369498096,1751599832568,-460.0,0.00016438,2]
[369498098,1751599832578,-2630.07,0.00016438,2]
[369498100,1751599832587,-460.0,0.00016438,2]
[369498102,1751599832598,-460.0,0.00016438,2]
[369498104,1751599832607,-592.66,0.00016438,2]
[369498107,1751599832617,-460.0,0.00016438,2]
[369498108,1751599832627,-790.53,0.00016438,2]
[369498110,1751599832637,-2107.43,0.00016438,2]
[369498112,1751599832648,-546.48,0.00016438,2]
[369498114,1751599832657,-469.8335516,0.00016438,2]
[369498117,1751599832667,-472.74716561,0.00016438,2]
[369498119,1751599832677,-1440.46,0.00016438,2]
[369498121,1751599832686,-476.57,0.00016438,2]
[369498123,1751599832696,-460.0,0.00016438,2]
[369498125,1751599832706,-460.0,0.00016438,2]
[369498127,1751599832716,-460.0,0.00016438,2]
[369498129,1751599832725,-939.99,0.00016438,2]
[369498131,1751599832735,-507.68965349,0.00016438,2]
[369498133,1751599832745,-533.64,0.00016438,2]
[369498135,1751599832755,-2252.79,0.00016438,2]
[369498137,1751599832764,-587.58,0.00016438,2]
[369498139,1751599832774,-460.0,0.00016438,2]
[369498141,1751599832784,-2884.72,0.00016438,2]
[369498143,1751599832794,-571.28,0.00016438,2]
[369498146,1751599832804,-898.88,0.00016438,2]
[369498148,1751599832814,-2315.3,0.00016438,2]
[369498150,1751599832824,-497.15,0.00016438,2]
[369498152,1751599832835,-469.87,0.00016438,2]
[369498154,1751599832845,-498.44,0.00016438,2]
[369498156,1751599832855,-728.65,0.00016438,2]
[369498158,1751599832865,-351.5930518,0.00016438,2]
[369498160,1751599832875,-1606.23,0.00016438,2]
[369498162,1751599832885,-384.7,0.00016438,2]
[369498164,1751599832894,-460.0,0.00016438,2]
[369498166,1751599832905,-1006.0,0.00016438,2]
[369498168,1751599832919,-460.0,0.00016438,2]
[369498171,1751599832930,-527.1,0.00016438,2]
[369498173,1751599832940,-460.0,0.00016438,2]
[369498175,1751599832950,-1393.73,0.00016438,2]
[369498177,1751599832959,-481.16426623,0.00016438,2]
[369498179,1751599832969,-603.85,0.00016438,2]
[369498181,1751599832979,-833.2,0.00016438,2]
[369498183,1751599832989,-516.39,0.00016438,2]
[369498185,1751599832999,-659.94,0.00016438,2]
[369498187,1751599833010,-537.09,0.00016438,2]
[369498189,1751599833020,-460.0,0.00016438,2]
[369498191,1751599833030,-1352.65,0.00016438,2]
[369498192,1751599833040,-460.0,0.00016438,2]
[369498195,1751599833051,-559.74,0.00016438,2]
[369498196,1751599833061,-460.0,0.00016438,2]
[369498199,1751599833072,-3351.77,0.00016438,2]
[369498200,1751599833082,-460.0,0.00016438,2]
[369498202,1751599833092,-523.32,0.00016438,2]
[369498204,1751599833103,-385.15356879,0.00016438,2]
[369498206,1751599833113,-460.0,0.00016438,2]
[369498208,1751599833123,-520.11105428,0.00016438,2]
[369498210,1751599833133,-280.43486206,0.00016438,2]
[369498213,1751599833150,-179.56513794,0.00016438,2]
[369498215,1751599833160,-1786.01,0.00016438,2]
[369498217,1751599833170,-477.92,0.00016438,2]
[369498219,1751599833181,-377.88486206,0.00016438,2]
[369498245,1751599837798,-87.38575012,0.00016438,2]
[369498246,1751599837808,-151.0,0.00016438,2]
[369498247,1751599837819,-460.0,0.00016438,2]
[369498248,1751599837834,-1040.05,0.00016438,2]
[369498249,1751599837852,-956.34,0.00016438,2]
[369498250,1751599837870,-836.08,0.00016438,2]
[369498251,1751599837885,-460.0,0.00016438,2]
[369498252,1751599837894,-1526.1,0.00016438,2]
[369498253,1751599837904,-460.0,0.00016438,2]
[369498254,1751599837914,-3025.34,0.00016438,2]
[369498255,1751599837923,-505.69699096,0.00016438,2]
[369498256,1751599837933,-460.0,0.00016438,2]
[369498257,1751599837942,-472.82489414,0.00016438,2]
[369498258,1751599837952,-460.0,0.00016438,2]
[369498259,1751599837961,-460.0,0.00016438,2]
[369498260,1751599837971,-261.53220631,0.0001647,2]
[369498261,1751599837981,-778.277226,0.00016522,2]
[369498262,1751599837991,-3193.97930204,0.00016549,2]
[369498263,1751599838000,-207.4,0.00016602,2]
[369498264,1751599838010,-181.21355876,0.00016611,2]
[369498265,1751599838019,-500.0,0.00016611,2]
[369498266,1751599838029,-500.0,0.00016611,2]
[369498267,1751599838038,-455.79123948,0.00016611,2]
[369498268,1751599838048,-500.0,0.00016611,2]
[369498269,1751599838058,-500.0,0.00016611,2]
[369498270,1751599838067,-500.0,0.00016611,2]
[369498271,1751599838077,-320.64764753,0.00016611,2]
[369498272,1751599838087,-500.0,0.00016611,2]
[369498273,1751599838097,-416.9866313,0.00016612,2]
[369498274,1751599838106,-4970.51528881,0.00016612,2]
[369498275,1751599838115,-173532.65374561,0.00016612,2]
[369498276,1751599838125,-160.0,0.00016649,2]
[369498277,1751599838134,-213.97741257,0.00016649,2]
[369498278,1751599838144,-160.0,0.00016649,2]
[369498279,1751599838154,-160.0,0.00016649,2]
[369498280,1751599838163,-847.91215827,0.00016649,2]
[369498281,1751599838173,-837.48520791,0.00016649,2]
[369498282,1751599838183,-230.40116161,0.00016649,2]
[369498283,1751599838192,-215.11129906,0.00016649,2]
[369498284,1751599838203,-12578.03337979,0.00016649,2]
[369498285,1751599838212,-151.0,0.00016681,2]
[369498286,1751599838222,-460.0,0.00016712,2]
[369498287,1751599838232,-460.0,0.00016712,2]
[369498288,1751599838243,-316.67661031,0.00016712,2]
[369498289,1751599838253,-460.0,0.00016712,2]
[369498290,1751599838263,-151.0,0.00016712,2]
[369498291,1751599838273,-151.0,0.00016712,2]
[369498292,1751599838283,-151.0,0.00016712,2]
[369498293,1751599838472,-298.836123,0.00016712,2]
[369498294,1751599838483,-221.501667,0.00016712,2]
[369498295,1751599838493,-221.501667,0.00016712,2]
[369498296,1751599838503,-221.501667,0.00016712,2]
[369498297,1751599838512,-221.501667,0.00016712,2]
[369498298,1751599838522,-460.0,0.00016712,2]
[369498299,1751599838531,-460.0,0.00016712,2]
[369498300,1751599838541,-238.172434,0.00016712,2]
[369498301,1751599838550,-460.0,0.00016712,2]
[369498302,1751599838560,-238.172434,0.00016712,2]
[369498303,1751599838569,-519.1,0.00016712,2]
[369498304,1751599838579,-460.0,0.00016712,2]
[369498305,1751599838588,-743.41,0.00016712,2]
[369498306,1751599838598,-526.5441683,0.00016712,2]
[369498307,1751599838607,-460.0,0.00016712,2]
[369498308,1751599838616,-994.0,0.00016712,2]
[369498309,1751599838626,-1206.14,0.00016712,2]
[369498310,1751599838636,-2630.07,0.00016712,2]
[369498311,1751599838645,-460.0,0.00016712,2]
[369498312,1751599838655,-448.25341354,0.00016712,2]
[369498313,1751599838665,-592.66,0.00016712,2]
[369498314,1751599838675,-790.53,0.00016712,2]
[369498315,1751599838685,-2107.43,0.00016712,2]
[369498316,1751599838694,-546.48,0.00016712,2]
[369498317,1751599838704,-1440.46,0.00016712,2]
[369498318,1751599838713,-476.57,0.00016712,2]
[369498319,1751599838723,-460.0,0.00016712,2]
[369498320,1751599838733,-460.0,0.00016712,2]
[369498321,1751599838742,-939.99,0.00016712,2]
[369498322,1751599838752,-533.64,0.00016712,2]
[369498323,1751599838762,-2252.79,0.00016712,2]
[369498324,1751599838771,-587.58,0.00016712,2]
[369498325,1751599838781,-460.0,0.00016712,2]
[369498326,1751599838790,-2884.72,0.00016712,2]
[369498327,1751599838800,-571.28,0.00016712,2]
[369498328,1751599838809,-898.88,0.00016712,2]
[369498329,1751599838819,-2315.3,0.00016712,2]
[369498330,1751599838830,-497.15,0.00016712,2]
[369498331,1751599838841,-469.87,0.00016712,2]
[369498332,1751599838851,-151.0,0.00016712,2]
[369498333,1751599838861,-498.44,0.00016712,2]
[369498334,1751599838871,-728.65,0.00016712,2]
[369498335,1751599838881,-1606.23,0.00016712,2]
[369498336,1751599838891,-460.0,0.00016712,2]
[369498337,1751599838900,-1006.0,0.00016712,2]
[369498338,1751599838910,-460.0,0.00016712,2]
[369498339,1751599838921,-527.1,0.00016712,2]
[369498340,1751599838930,-460.0,0.00016712,2]
[369498341,1751599838940,-1393.73,0.00016712,2]
[369498342,1751599838949,-603.85,0.00016712,2]
[369498343,1751599838959,-833.2,0.00016712,2]
[369498344,1751599838969,-516.39,0.00016712,2]
[369498345,1751599838978,-151.0,0.00016712,2]
[369498346,1751599838988,-659.94,0.00016712,2]
[369498347,1751599838998,-537.09,0.00016712,2]
[369498348,1751599839007,-179.36607,0.00016712,2]
[369498349,1751599839017,-460.0,0.00016712,2]
[369498350,1751599839028,-1352.65,0.00016712,2]
[369498351,1751599839038,-460.0,0.00016712,2]
[369498352,1751599839050,-559.74,0.00016712,2]
[369498353,1751599839061,-460.0,0.00016712,2]
[369498354,1751599839072,-3351.77,0.00016712,2]
[369498355,1751599839084,-523.32,0.00016712,2]
[369498356,1751599839094,-460.0,0.00016712,2]
[369498357,1751599839103,-460.0,0.00016712,2]
[369498358,1751599839113,-1786.01,0.00016712,2]
[369498359,1751599839123,-477.92,0.00016712,2]
[369498360,1751599839133,-460.0,0.00016712,2]
[369498361,1751599839142,-1040.05,0.00016712,2]
[369498362,1751599839152,-956.34,0.00016712,2]
[369498363,1751599839162,-836.08,0.00016712,2]
[369498364,1751599839171,-1526.1,0.00016712,2]
[369498365,1751599839181,-460.0,0.00016712,2]
[369498366,1751599839190,-3025.34,0.00016712,2]
[369498367,1751599839200,-460.0,0.00016712,2]
[369498368,1751599839210,-460.0,0.00016712,2]
[369498369,1751599839219,-460.0,0.00016712,2]
[369498370,1751599839229,-17385.75378207,0.0001686,2]
[369498390,1751599840067,-500.0,0.00016437,2]
[369498392,1751599840078,-500.0,0.00016437,2]
[369498394,1751599840088,-500.0,0.00016437,2]
[369498396,1751599840097,-500.0,0.00016437,2]
[369498398,1751599840106,-500.0,0.00016437,2]
[369498400,1751599840116,-500.0,0.00016437,2]
[369498404,1751599840134,-4910.06150441,0.0001686,2]
[369498407,1751599840155,-24003.32213832,0.0001686,2]
[369498409,1751599840169,-3012.65460042,0.0001686,2]
[369498412,1751599840182,-824.46592575,0.0001686,2]
[369502444,1751600598633,159.25884,0.00013699,2]
[369502445,1751600632590,2000.0,0.00024658,60]
[369502446,1751600713291,610.0,0.00027397,120]
[369502475,1751601032087,-196.1612288,0.00015654,2]
[369502476,1751601032098,-207.4,0.00016428,2]
[369502477,1751601032109,-160.0,0.00016435,2]
[369502478,1751601032118,-1200.0,0.00016436,2]
[369502479,1751601032129,-1080.08124128,0.00016437,2]
[369502480,1751601032140,-17195.65077665,0.00016437,2]
[369502481,1751601032151,-641.72568103,0.00016437,2]
[369502482,1751601032160,-198.00814463,0.00016437,2]
[369502483,1751601032170,-315.35805459,0.00016437,2]
[369502484,1751601032182,-500.0,0.00016437,2]
[369502485,1751601032192,-251.16312749,0.00016437,2]
[369502486,1751601032204,-247.97321306,0.00016438,2]
[369502487,1751601032213,-444.05957825,0.00016438,2]
[369502488,1751601032223,-460.0,0.00016438,2]
[369502489,1751601032233,-461.1101355,0.00016438,2]
[369502490,1751601032243,-368.88034568,0.00016438,2]
[369502491,1751601032253,-460.0,0.00016438,2]
[369502493,1751601032264,-460.0,0.00016438,2]
[369502494,1751601032274,-461.21443112,0.00016438,2]
[369502496,1751601032284,-460.0,0.00016438,2]
[369502497,1751601032295,-460.0,0.00016438,2]
[369502498,1751601032304,-460.0,0.00016438,2]
[369502499,1751601032318,-460.0,0.00016438,2]
[369502500,1751601032328,-460.0,0.00016438,2]
[369502501,1751601032338,-460.0,0.00016438,2]
[369502502,1751601032348,-460.0,0.00016438,2]
[369502503,1751601032358,-460.0,0.00016438,2]
[369502504,1751601032368,-475.84,0.00016438,2]
[369502505,1751601032378,-460.0,0.00016438,2]
[369502506,1751601032389,-423.95001621,0.00016438,2]
[369502507,1751601032399,-460.0,0.00016438,2]
[369502508,1751601032409,-460.0,0.00016438,2]
[369502509,1751601032418,-460.0,0.00016438,2]
[369502510,1751601032428,-460.0,0.00016438,2]
[369502511,1751601032438,-759.18,0.00016438,2]
[369502512,1751601032448,-465.0607359,0.00016438,2]
[369502513,1751601032458,-460.0,0.00016438,2]
[369502514,1751601032467,-460.0,0.00016438,2]
[369502515,1751601032477,-460.0,0.00016438,2]
[369502516,1751601032486,-460.0,0.00016438,2]
[369502517,1751601032496,-460.0,0.00016438,2]
[369502518,1751601032506,-464.16091155,0.00016438,2]
[369502519,1751601032515,-508.55430109,0.00016438,2]
[369502520,1751601032525,-460.0,0.00016438,2]
[369502521,1751601032534,-460.0,0.00016438,2]
[369502522,1751601032544,-336.2881086,0.00016438,2]
[369502523,1751601032554,-472.04642044,0.00016438,2]
[369502524,1751601032563,-460.0,0.00016438,2]
[369502525,1751601032573,-463.81811296,0.00016438,2]
[369502526,1751601032582,-471.99987411,0.00016438,2]
[369502527,1751601032592,-462.64977402,0.00016438,2]
[369502528,1751601032603,-460.0,0.00016438,2]
[369502529,1751601032613,-460.0,0.00016438,2]
[369502530,1751601032622,-460.0,0.00016438,2]
[369502531,1751601032632,-461.33978581,0.00016438,2]
[369502532,1751601032641,-507.53580138,0.00016438,2]
[369502533,1751601032651,-460.0,0.00016438,2]
[369502534,1751601032661,-460.0,0.00016438,2]
[369502535,1751601032671,-472.79130792,0.00016438,2]
[369502536,1751601032681,-462.07440687,0.00016438,2]
[369502537,1751601032691,-464.2505304,0.00016438,2]